Cogmind - Beta 12 X2 @@@ ROGUE MODE // 2022.09.03 @ 04:17:56 Player: albenzo Result: Destroyed by Y-64 Sentinel with KE Penetrator Performance ------------- Evolutions (6) 3000 Regions Visited (18) 3600 Robots Destroyed (82) 410 Value Destroyed (3026) 3026 Prototype IDs (48) 960 Alien Tech Used (0) 0 Bonus (686) 686 TOTAL SCORE: 11682 Bonus ------- Follower Combat Kills 99 Aligned with FarCom 300 Met Data Miner 300 Friendly Fire -13 Cogmind --------- Core Integrity 0/1150 Matter 300/300 Energy 100/100 System Corruption 7% Temperature Cool (9) Movement Core (50) Location -4/Factory Parts ------- > --- POWER (1) -------- (None) > --- PROPULSION (8) --- (None) > --- UTILITY (8) ------ Improved Targeting Computer Improved Target Analyzer Improved Target Analyzer Armor Integrity Analyzer Hacking Suite > --- WEAPON (2) ------- (None) > --- INVENTORY (5) ---- Improved Fusion Compressor Armored Medium Treads High-capacity Storage Unit Advanced Actuator Array Improved Datajack Peak State ------------ > --- POWER ------------ Micro Fission Core > --- PROPULSION ------- Improved Gravmag System Antigrav System Gyrokinetic Inverter Linear Gravjet Improved Gyrokinetic Inverter Field Propulsion Drive Field Propulsion Array > --- UTILITY ---------- Improved Heat Sink Advanced Heat Sink Enhanced Optical Array Improved Targeting Computer Improved Target Analyzer Improved Target Analyzer Hacking Suite System Shield > --- WEAPON ----------- Force Lance > --- INVENTORY -------- Improved Fusion Compressor Armored Medium Treads High-capacity Storage Unit Advanced Actuator Array Improved Datajack [Rating: 96] Favorites ----------- Power Ion-Momentum Engine Engine Ion-Momentum Engine Power Core Light Nuclear Core Propulsion Cesium-ion Thruster Treads Light Treads Leg Aluminum Leg Wheel Centrium Wheel Hover Unit Hovering Antigrav-VTOL Exoskeleton Flight Unit Cesium-ion Thruster Utility Improved Heat Sink Device Improved Heat Sink Storage Medium Storage Unit Processor Advanced Melee Analysis Suite Hackware System Shield Protection Improved Medium Armor Plating Weapon Medium Laser Energy Gun Medium Laser Launcher Grenade Launcher Impact Weapon Power Maul Slashing Weapon Power Sword Piercing Weapon Force Lance Build | -11 -10 -10 -9 -9 -9 -8 -8 -7 -7 -7 -7 -6 -6 -5 -5 -5 -5 -4 ------- Run | Scr Mat Min Mat Min Exi Min Mat Fac Low Low Dat Pro Fac Fac Was Fac Ext Fac Slots Evolved 12 | . . . 2 . . . 2 2 . . . . 2 2 . . . 2 Power . | . . . . . . . . . . . . . . . . . . . Propulsion 6 | . . . 1 . . . 1 2 . . . . 1 1 . . . . Utility 6 | . . . 1 . . . 1 . . . . . 1 1 . . . 2 Weapon . | . . . . . . . . . . . . . . . . . . . Parts Attached 129 | 6 2 1 9 2 . 1 18 12 1 . 2 . 14 10 1 4 17 29 Power 9 | 1 . . 1 . . . 3 . . . . . 1 . . . 1 2 Engine 5 | 1 . . 1 . . . 1 . . . . . 1 . . . . 1 Core 4 | . . . . . . . 2 . . . . . . . . . 1 1 Reactor . | . . . . . . . . . . . . . . . . . . . Propulsion 45 | 2 . . 3 . . 1 5 8 . . 1 . 3 1 . 2 8 11 Treads 2 | . . . 1 . . . . . . . . . . . . . . 1 Leg 18 | 2 . . 2 . . 1 5 . . . . . . . . . 8 . Wheel 3 | . . . . . . . . . . . . . . . . 1 . 2 Hover 5 | . . . . . . . . . . . . . . . . . . 5 Flight 17 | . . . . . . . . 8 . . 1 . 3 1 . 1 . 3 Utility 49 | 1 2 1 2 . . . 5 2 1 . 1 . 5 5 1 1 8 14 Device 27 | . . . 2 . . . 3 2 1 . 1 . 2 4 1 1 3 7 Storage 6 | 1 1 . . . . . . . . . . . . . . . 4 . Processor 9 | . . 1 . . . . . . . . . . 1 1 . . . 6 Hackware 2 | . . . . . . . . . . . . . 1 . . . . 1 Protection 5 | . 1 . . . . . 2 . . . . . 1 . . . 1 . Artifact . | . . . . . . . . . . . . . . . . . . . Weapon 26 | 2 . . 3 2 . . 5 2 . . . . 5 4 . 1 . 2 Energy Gun 10 | 2 . . 2 1 . . 5 . . . . . . . . . . . Energy Cannon . | . . . . . . . . . . . . . . . . . . . Ballistic Gun . | . . . . . . . . . . . . . . . . . . . Ballistic Cannon . | . . . . . . . . . . . . . . . . . . . Launcher 4 | . . . 1 1 . . . . . . . . 2 . . . . . Special Weapon . | . . . . . . . . . . . . . . . . . . . Impact Weapon 2 | . . . . . . . . . . . . . 1 1 . . . . Slashing Weapon 9 | . . . . . . . . 2 . . . . 2 3 . 1 . 1 Piercing Weapon 1 | . . . . . . . . . . . . . . . . . . 1 Special Melee Weapon . | . . . . . . . . . . . . . . . . . . . Unidentified Prototypes 4 | . . . 1 . . . . . . . . . 2 . . . 1 . Parts Lost 58 | . . . . . . . 3 . . 3 . . 6 9 . 5 15 17 Power 7 | . . . . . . . 1 . . . . . 1 2 . 1 1 1 Propulsion 32 | . . . . . . . 1 . . 2 . . 4 3 . 1 11 10 Utility 16 | . . . . . . . 1 . . 1 . . 1 3 . 3 2 5 Weapon 3 | . . . . . . . . . . . . . . 1 . . 1 1 Highest Loss Streak 13 | . . . . . . . 1 . . 3 . . 4 5 . 3 13 11 To Critical Strikes 2 | . . . . . . . . . . . . . . 1 . . 1 . Average Slot Usage (%) 81 | . 98 100 100 100 100 100 94 76 92 85 76 84 77 62 52 55 83 60 Engine 4 | . 14 14 11 11 11 11 3 . . 2 7 7 4 4 . 2 . . Core 2 | . . . . . . . 5 7 7 3 . . . . 5 2 4 . Leg 14 | . 28 28 27 33 33 33 35 2 . . . . 2 . . . 20 . Hover 2 | . . . . . . . . . . . . 6 2 1 . 4 5 14 Flight 11 | . . . . . . . . 34 46 43 38 38 32 11 . 2 5 4 Device 14 | . . . 11 22 22 22 16 22 23 20 15 15 14 15 17 16 12 6 Storage 4 | . 14 14 11 11 11 11 9 . . . . . . . . . 4 . Processor 4 | . . 10 10 . . . . . . . . . 5 5 5 5 5 15 Hackware 2 | . . . . . . . . . . . . . . 5 5 5 5 9 Protection 2 | . 12 3 . . . . 6 . . . . . 3 . . . 3 . Energy Gun 8 | . 28 28 21 22 22 22 17 . . 5 7 7 . . 5 1 . . Impact Weapon 1 | . . . . . . . . . . . . . 4 4 . . . . Slashing Weapon 3 | . . . . . . . . 6 7 7 7 7 2 4 5 9 10 . Naked Turns . | . . . . . . . . . . . . . . . . . . . Heaviest Build 110 | 12 18 18 28 28 28 28 37 24 24 24 25 25 28 26 19 25 110 19 Greatest Support 95 | 20 20 20 35 35 35 35 57 29 29 39 43 43 32 51 30 58 95 42 Greatest Overweight (x) 5 | 2 . . . . . . . 1 . . . . . . . 1 5 1 Average Overweight (x) . | . . . . . . . . . . . . . . . . . . . Largest Inventory Capacity 25 | 8 10 10 10 10 10 10 10 10 5 5 5 5 5 5 5 5 25 5 Average Capacity 7 | 7 8 10 10 10 10 10 10 5 5 5 5 5 5 5 5 5 16 5 Most Carried 14 | 6 10 10 10 10 10 10 10 10 5 5 5 5 5 5 4 5 14 5 Average Carried 6 | 2 7 9 9 9 9 9 9 4 5 5 4 4 4 3 3 4 9 4 Final Capacity 10 | 8 10 10 10 10 10 10 10 5 5 5 5 5 5 5 5 5 5 5 Final Carried 10 | 6 10 10 10 10 10 10 10 5 5 5 3 5 5 3 4 5 5 5 Class Distribution -------------------- 40% | Mutant 28% | Scavenger-Mutant 15% | Sprinter 6% | Hacker-Mutant 3% | Skirmisher Dominant Class ---------------- Mutant | -10/Materials Mutant | -10/Mines Mutant | -9/Materials Scavenger-Mutant | -9/Mines Scavenger-Mutant | -9/Exiles Scavenger-Skirmisher | -8/Mines Scavenger-Mutant | -8/Materials Scavenger-Sprinter | -7/Factory Sprinter | -7/Lower Caves Sprinter | -7/Lower Caves Mutant | -7/Data Miner Sprinter | -6/Proximity Caves Sprinter | -6/Factory Mutant | -5/Factory Mutant | -5/Waste Mutant | -5/Factory Scavenger-Mutant | -5/Extension Hacker-Mutant | -4/Factory Resources | -11 -10 -10 -9 -9 -9 -8 -8 -7 -7 -7 -7 -6 -6 -5 -5 -5 -5 -4 ----------- Run | Scr Mat Min Mat Min Exi Min Mat Fac Low Low Dat Pro Fac Fac Was Fac Ext Fac Matter Collected 1568 | 220 . 70 160 27 . 13 170 . 53 92 . 20 125 110 . 35 193 280 Remotely . | . . . . . . . . . . . . . . . . . . . Salvage Created 3395 | . . 11 276 27 . 44 756 . . 98 . . 267 560 . 347 359 650 Parts 161 | . . 2 19 4 . 6 33 . . 7 . . 12 19 . 9 19 31 Haulers Intercepted . | . . . . . . . . . . . . . . . . . . . Recyclers Shooed 3 | . . . 1 . . . . . . . . . . 2 . . . . Parts Field Recycled . | . . . . . . . . . . . . . . . . . . . Retrieved Matter . | . . . . . . . . . . . . . . . . . . . Parts Self-Destructed 8 | . . . . . . . . . . 7 . 1 . . . . . . Prevented . | . . . . . . . . . . . . . . . . . . . Kills | -11 -10 -10 -9 -9 -9 -8 -8 -7 -7 -7 -7 -6 -6 -5 -5 -5 -5 -4 ------- Run | Scr Mat Min Mat Min Exi Min Mat Fac Low Low Dat Pro Fac Fac Was Fac Ext Fac Combat Hostiles Destroyed 70 | . . 1 9 4 . 3 19 . . 4 . . 5 11 . 3 5 6 Melee 30 | . . . . . . . . . . 3 . . 4 9 . 3 5 6 Guns 25 | . . 1 2 1 . 3 17 . . 1 . . . . . . . . AOE 9 | . . . 6 3 . . . . . . . . . . . . . . Classes Destroyed 11 | . . 1 6 . . . 1 . . . . . 3 . . . . . Worker 2 | . . . 2 . . . . . . . . . . . . . . . Builder 2 | . . . 2 . . . . . . . . . . . . . . . Recycler 5 | . . . . . . . . . . . . . 1 1 . 1 . 2 Watcher 3 | . . . 1 . . . . . . . . . 2 . . . . . Swarmer 21 | . . 1 . 4 . 3 5 . . 4 . . . 4 . . . . Cutter 3 | . . . . . . . . . . . . . 3 . . . . . Grunt 21 | . . . 7 . . . 7 . . . . . . 2 . 3 . 2 Duelist 1 | . . . 1 . . . . . . . . . . . . . . . Sentry 10 | . . . 1 . . . 6 . . . . . . . . . 3 . Hunter 3 | . . . . . . . 1 . . . . . . 1 . . 1 . Programmer 11 | . . . . . . . . . . . . . 2 4 . . 1 4 Best Kill Streak 11 | . . 1 11 4 . 3 5 . . 4 . . 5 5 . 4 3 4 Combat Bots Only 6 | . . 1 6 4 . 3 5 . . 4 . . 4 3 . 3 3 2 Max Kills in Single Turn 4 | . . 1 4 3 . 1 1 . . 1 . . 1 1 . 1 1 1 Gunslinging . | . . . . . . . . . . . . . . . . . . . Exploded 3 | . . . 2 3 . . . . . . . . . . . . . . Melee 1 | . . . . . . . . . . 1 . . 1 1 . 1 1 1 Uniques/NPCs Destroyed . | . . . . . . . . . . . . . . . . . . . Combat | -11 -10 -10 -9 -9 -9 -8 -8 -7 -7 -7 -7 -6 -6 -5 -5 -5 -5 -4 -------- Run | Scr Mat Min Mat Min Exi Min Mat Fac Low Low Dat Pro Fac Fac Was Fac Ext Fac Damage Taken 9513 | . . 39 211 50 . 59 849 46 . 262 . 166 697 1943 . 589 2040 2562 Core 2292 | . . 18 40 26 . 8 122 . . 15 . . 57 293 . 146 405 1162 Absorbed by Shields . | . . . . . . . . . . . . . . . . . . . Core Remaining (%) 79 | 100 . 92 . . . 81 77 . . . . 97 93 . . . 15 . Volleys Fired 84 | . 1 1 21 2 . 6 50 . . 3 . . . . . . . . Largest 2 | . 2 2 2 2 . 2 2 . . 1 . . . . . . . . Hottest 126 | . 100 100 125 125 . 125 126 . . 36 . . . . . . . . Shots Fired 156 | . 2 2 34 3 . 12 100 . . 3 . . . . . . . . Gun 147 | . 2 2 26 2 . 12 100 . . 3 . . . . . . . . Cannon . | . . . . . . . . . . . . . . . . . . . Launcher 9 | . . . 8 1 . . . . . . . . . . . . . . Special . | . . . . . . . . . . . . . . . . . . . Kinetic . | . . . . . . . . . . . . . . . . . . . Thermal 147 | . 2 2 26 2 . 12 100 . . 3 . . . . . . . . Explosive 9 | . . . 8 1 . . . . . . . . . . . . . . Electromagnetic . | . . . . . . . . . . . . . . . . . . . Robot Hit Streak 41 | . . 1 6 1 . 5 41 . . 2 . . . . . . . . Robot Miss Streak 3 | . . . 2 1 . 1 2 . . 3 . . . . . . . . Penetration Max . | . . . . . . . . . . . . . . . . . . . Secondary Targets . | . . . . . . . . . . . . . . . . . . . Shots Hit Robots 239 | . . 1 21 1 . 8 81 . . 6 . . 23 40 . 20 21 17 Core Hits 115 | . . 1 30 4 . 3 31 . . 5 . . 4 9 . 7 7 14 Critical Kills . | . . . . . . . . . . . . . . . . . . . Critical Parts Destroyed 4 | . . . . . . . . . . . . . 2 2 . . . . Critical Strikes 27 | . . . 4 1 . . 10 . . . . . 2 3 . 3 3 1 Burn 15 | . . . 4 1 . . 10 . . . . . . . . . . . Smash 4 | . . . . . . . . . . . . . 2 2 . . . . Sever 7 | . . . . . . . . . . . . . . 1 . 3 3 . Impale 1 | . . . . . . . . . . . . . . . . . . 1 Melee Attacks 189 | . . . . . . . . . . 7 . . 38 70 . 22 23 29 Impact 53 | . . . . . . . . . . . . . 22 31 . . . . Slashing 108 | . . . . . . . . . . 7 . . 16 39 . 22 23 1 Piercing 28 | . . . . . . . . . . . . . . . . . . 28 Sneak Attacks 10 | . . . . . . . . . . . . . 1 2 . 3 1 3 Combat Hostiles 2 | . . . . . . . . . . . . . . . . . 1 1 Follow-up Attacks 17 | . . . . . . . . . . . . . 4 6 . 3 4 . Damage Inflicted 8651 | . 25 13 1095 186 . 119 1336 . . 177 . . 989 1933 . 924 885 969 Guns 1793 | . 25 13 238 12 . 119 1336 . . 50 . . . . . . . . Cannons . | . . . . . . . . . . . . . . . . . . . Explosions 1031 | . . . 857 174 . . . . . . . . . . . . . . Melee 5738 | . . . . . . . . . . 127 . . 989 1933 . 924 885 880 Ramming 89 | . . . . . . . . . . . . . . . . . . 89 Kinetic . | . . . . . . . . . . . . . . . . . . . Thermal 1978 | . 25 13 423 12 . 119 1336 . . 50 . . . . . . . . Explosive 846 | . . . 672 174 . . . . . . . . . . . . . . Electromagnetic . | . . . . . . . . . . . . . . . . . . . Impact 1672 | . . . . . . . . . . . . . 582 1090 . . . . Slashing 3186 | . . . . . . . . . . 127 . . 407 843 . 924 885 . Piercing 880 | . . . . . . . . . . . . . . . . . . 880 Highest Corruption 13 | . . . . . . . . . . . . . 1 6 13 13 13 7 Average Corruption 7 | . . . . . . . . . . . . . 1 3 11 13 13 4 Corruption Purged . | . . . . . . . . . . . . . . . . . . . Corruption Blocked . | . . . . . . . . . . . . . . . . . . . Effects 62 | . . . . . . . . . . . . . 3 9 3 11 27 9 Message Errors 16 | . . . . . . . . . . . . . 1 4 . 2 7 2 Matter Fused 14 | . . . . . . . . . . . . . 1 2 . 1 6 4 Heat Flow Errors 4 | . . . . . . . . . . . . . . . . . 2 2 Energy Discharges 8 | . . . . . . . . . . . . . 1 . . 2 4 1 Parts Rejected 2 | . . . . . . . . . . . . . . 1 1 . . . Data Loss (minor) 10 | . . . . . . . . . . . . . . 2 1 4 3 . Data Loss (major) 4 | . . . . . . . . . . . . . . . . . 4 . Alerts 1 | . . . . . . . . . . . . . . . . 1 . . Misdirections 3 | . . . . . . . . . . . . . . . 1 1 1 . Overload Shots . | . . . . . . . . . . . . . . . . . . . Overflow Damage 1070 | . . . 58 . . . . . . 5 . . 359 482 . 53 12 101 Projectiles . | . . . . . . . . . . . . . . . . . . . Explosions 58 | . . . 58 . . . . . . . . . . . . . . . Melee 1012 | . . . . . . . . . . 5 . . 359 482 . 53 12 101 Knockbacks 12 | . . . . . . . . . . . . . 3 9 . . . . Impact 12 | . . . . . . . . . . . . . 3 9 . . . . Kinetic . | . . . . . . . . . . . . . . . . . . . Secondary . | . . . . . . . . . . . . . . . . . . . Self-Inflicted Damage 54 | . . . . 19 . . . . . . . . . . . . . 35 Shots 1 | . . . . 1 . . . . . . . . . . . . . . Rammed 42 | . . . . . . . . . . . . . . . . . . 42 Targets Rammed 42 | . . . . . . . . . . . . . . . . . . 42 Kicked . | . . . . . . . . . . . . . . . . . . . Crushed . | . . . . . . . . . . . . . . . . . . . Highest Temperature 336 | . 39 39 336 18 . 72 231 . 1 1 . 16 1 . . . 204 148 Average Temperature 76 | . 20 20 106 12 . 30 88 . 1 1 . 7 1 . . . 84 63 Received Heat Transfer 1499 | . . . 126 . . . 324 . . . . 33 . 36 . 81 324 575 Effects 2 | . . . 1 . . . . . . . . . . . . . 1 . Energy Bleed 1 | . . . . . . . . . . . . . . . . . 1 . Interference 1 | . . . 1 . . . . . . . . . . . . . . . Siege Activations . | . . . . . . . . . . . . . . . . . . . Robots Corrupted . | . . . . . . . . . . . . . . . . . . . Combat Hostiles . | . . . . . . . . . . . . . . . . . . . Parts Fried 12 | . . . . . . . . . . . . . 3 9 . . . . Impact Corruptions 22 | . . . . . . . . . . . . . 9 13 . . . . Robots Melted 3 | . . . 1 . . . 2 . . . . . . . . . . . Combat Hostiles 3 | . . . 1 . . . 2 . . . . . . . . . . . Parts Melted 24 | . . . 5 1 . 1 17 . . . . . . . . . . . Heat Transferred 5478 | . 74 37 1038 111 . 296 3774 . . 148 . . . . . . . . Parts Sabotaged . | . . . . . . . . . . . . . . . . . . . Parts Stolen . | . . . . . . . . . . . . . . . . . . . Parts Stripped . | . . . . . . . . . . . . . . . . . . . Power Chain Reactions . | . . . . . . . . . . . . . . . . . . . Missiles Intercepted . | . . . . . . . . . . . . . . . . . . . Alert | -11 -10 -10 -9 -9 -9 -8 -8 -7 -7 -7 -7 -6 -6 -5 -5 -5 -5 -4 ------- Run | Scr Mat Min Mat Min Exi Min Mat Fac Low Low Dat Pro Fac Fac Was Fac Ext Fac Peak Influence 424 | . 12 105 424 212 . 85 366 128 . . . . 166 227 88 126 232 192 Initial 121 | . . 4 40 104 . . 33 121 . . . . 31 81 58 61 42 . Average 108 | . 5 61 156 209 . 70 168 124 . . . . 75 98 78 102 116 62 Maximum Alert Level 2 | . . . 2 1 . . 1 . . . . . . 1 . . 1 . Low Security (%) 81 | 100 100 100 58 3 . 100 57 100 . . . . 100 95 100 100 62 100 Level 1 16 | . . . 25 96 . . 42 . . . . . . 4 . . 37 . Level 2 1 | . . . 15 . . . . . . . . . . . . . . . Level 3 . | . . . . . . . . . . . . . . . . . . . Level 4 . | . . . . . . . . . . . . . . . . . . . Level 5 . | . . . . . . . . . . . . . . . . . . . High Security . | . . . . . . . . . . . . . . . . . . . Max Security . | . . . . . . . . . . . . . . . . . . . Squads Dispatched 19 | . 2 . . . . . 2 1 . . . . 5 3 . 3 . 3 Investigation 6 | . . . . . . . 1 1 . . . . 2 1 . 1 . . Extermination 5 | . . . . . . . . . . . . . 2 1 . 1 . 1 Reinforcement 8 | . 2 . . . . . 1 . . . . . 1 1 . 1 . 2 Assault . | . . . . . . . . . . . . . . . . . . . Garrison . | . . . . . . . . . . . . . . . . . . . Intercept . | . . . . . . . . . . . . . . . . . . . Searches Triggered . | . . . . . . . . . . . . . . . . . . . Data Miner Redirects 2 | . . . . . . . . . . . . . 2 . . . . . Construction Impeded . | . . . . . . . . . . . . . . . . . . . Haulers Reinforced . | . . . . . . . . . . . . . . . . . . . Active Scanning Responses . | . . . . . . . . . . . . . . . . . . . Cargo Convoy Interrupts . | . . . . . . . . . . . . . . . . . . . Stealth | -11 -10 -10 -9 -9 -9 -8 -8 -7 -7 -7 -7 -6 -6 -5 -5 -5 -5 -4 --------- Run | Scr Mat Min Mat Min Exi Min Mat Fac Low Low Dat Pro Fac Fac Was Fac Ext Fac Distress Signals 16 | . . . 1 . . . 6 . . . . . 2 3 . . 3 1 Communications Jammed . | . . . . . . . . . . . . . . . . . . . Distress Signals . | . . . . . . . . . . . . . . . . . . . Times Spotted 168 | . 2 3 12 4 . 4 32 . 3 5 . 8 14 28 5 6 14 28 Peak Tracking Total 11 | . 3 3 7 4 . 3 5 . 4 4 . 8 6 6 5 4 5 11 Tactical Retreats 21 | . . . . . . 1 2 . 2 1 . 1 4 5 . . 1 4 Traps | -11 -10 -10 -9 -9 -9 -8 -8 -7 -7 -7 -7 -6 -6 -5 -5 -5 -5 -4 ------- Run | Scr Mat Min Mat Min Exi Min Mat Fac Low Low Dat Pro Fac Fac Was Fac Ext Fac Traps Triggered 10 | . . . . . . . 2 1 . . . . . 2 . 2 . 3 Indirectly . | . . . . . . . . . . . . . . . . . . . Trap Hack Attempts . | . . . . . . . . . . . . . . . . . . . Triggered . | . . . . . . . . . . . . . . . . . . . Disarmed . | . . . . . . . . . . . . . . . . . . . Reprogrammed . | . . . . . . . . . . . . . . . . . . . Reused . | . . . . . . . . . . . . . . . . . . . Traps Extracted . | . . . . . . . . . . . . . . . . . . . Installed 1 | . . . . . . . . . . . . 1 . . . . . . Triggered . | . . . . . . . . . . . . . . . . . . . Machines | -11 -10 -10 -9 -9 -9 -8 -8 -7 -7 -7 -7 -6 -6 -5 -5 -5 -5 -4 ---------- Run | Scr Mat Min Mat Min Exi Min Mat Fac Low Low Dat Pro Fac Fac Was Fac Ext Fac Machines Disabled 4 | . . 1 3 . . . . . . . . . . . . . . . Max in Single Turn 2 | . . . 2 . . . . . . . . . . . . . . . Machines Sabotaged . | . . . . . . . . . . . . . . . . . . . Overloaded Fab Kills . | . . . . . . . . . . . . . . . . . . . Hacking | -11 -10 -10 -9 -9 -9 -8 -8 -7 -7 -7 -7 -6 -6 -5 -5 -5 -5 -4 --------- Run | Scr Mat Min Mat Min Exi Min Mat Fac Low Low Dat Pro Fac Fac Was Fac Ext Fac Machines Accessed 43 | . 3 1 3 . 1 . 7 4 . . 4 1 11 1 . 1 4 2 Terminals 32 | . 3 1 3 . . . 6 3 . . . 1 8 1 . . 4 2 Fabricators 3 | . . . . . . . . . . . . . 2 . . 1 . . Repair Stations 1 | . . . . . . . . . . . . . 1 . . . . . Recycling Units 1 | . . . . . . . . 1 . . . . . . . . . . Scanalyzers 1 | . . . . . . . 1 . . . . . . . . . . . Garrison Access . | . . . . . . . . . . . . . . . . . . . Total Hacks 138 | . 10 2 8 . 1 . 22 11 . . 29 1 30 4 . 2 14 4 Successful 74 | . 3 1 1 . 1 . 10 4 . . 29 1 10 2 . 2 9 1 Failed 64 | . 7 1 7 . . . 12 7 . . . . 20 2 . . 5 3 Catastrophic 9 | . 1 . 1 . . . 4 1 . . . . 1 . . . . 1 Database Lockouts . | . . . . . . . . . . . . . . . . . . . Manual 39 | . 4 2 8 . 1 . 11 3 . . . . 7 1 . . 2 . Terminals 93 | . 10 2 8 . . . 18 8 . . . 1 24 4 . . 14 4 Fabricators 6 | . . . . . . . . . . . . . 4 . . 2 . . Repair Stations 2 | . . . . . . . . . . . . . 2 . . . . . Recycling Units 3 | . . . . . . . . 3 . . . . . . . . . . Scanalyzers 4 | . . . . . . . 4 . . . . . . . . . . . Garrison Access . | . . . . . . . . . . . . . . . . . . . Terminal Hacks 65 | . 3 1 1 . 1 . 8 2 . . 29 1 7 2 . . 9 1 Record 14 | . . . . . . . . . . . 11 1 . . . . 1 1 Part Schematic 10 | . . . . . . . . . . . 10 . . . . . . . Robot Schematic 5 | . . . . . . . . . . . 5 . . . . . . . Robot Analysis 2 | . 1 . . . . . . . . . . . 1 . . . . . Prototype ID Bank 7 | . . . . . . . . . . . 3 . 2 . . . 2 . Open DSF 2 | . . . . . . . . . . . . . 2 . . . . . Branch Access Points 4 | . 1 1 1 . . . 1 . . . . . . . . . . . Terminal Index 2 | . 1 . . . . . . . . . . . . 1 . . . . Alert Level 6 | . . . . . . . 2 . . . . . 2 1 . . 1 . Unreport Threat 3 | . . . . . . . 2 . . . . . . . . . 1 . Locate Traps 2 | . . . . . . . . 1 . . . . . . . . 1 . Investigation Status 1 | . . . . . . . . . . . . . . . . . 1 . Recall Investigation 1 | . . . . . . . 1 . . . . . . . . . . . Registered Components 2 | . . . . . . . 1 1 . . . . . . . . . . Zone Layout 3 | . . . . . . . 1 . . . . . . . . . 2 . EX-Prototype ID Bank 1 | . . . . . 1 . . . . . . . . . . . . . Fabricator Hacks 4 | . . . . . . . . . . . . . 2 . . 2 . . Load Schematic 2 | . . . . . . . . . . . . . 1 . . 1 . . Build 2 | . . . . . . . . . . . . . 1 . . 1 . . Repair Station Hacks 1 | . . . . . . . . . . . . . 1 . . . . . Scan Component 1 | . . . . . . . . . . . . . 1 . . . . . Recycling Unit Hacks 1 | . . . . . . . . 1 . . . . . . . . . . Report Inventory 1 | . . . . . . . . 1 . . . . . . . . . . Scanalyzer 2 | . . . . . . . 2 . . . . . . . . . . . Insert Component 1 | . . . . . . . 1 . . . . . . . . . . . Analyze 1 | . . . . . . . 1 . . . . . . . . . . . Garrison Access Hacks . | . . . . . . . . . . . . . . . . . . . Unauthorized Hacks 1 | . . . . . . . . 1 . . . . . . . . . . Terminals . | . . . . . . . . . . . . . . . . . . . Fabricators . | . . . . . . . . . . . . . . . . . . . Repair Stations . | . . . . . . . . . . . . . . . . . . . Recycling Units 1 | . . . . . . . . 1 . . . . . . . . . . Reject 1 | . . . . . . . . 1 . . . . . . . . . . Scanalyzers . | . . . . . . . . . . . . . . . . . . . Garrison Access . | . . . . . . . . . . . . . . . . . . . Data Cores Recovered . | . . . . . . . . . . . . . . . . . . . Used . | . . . . . . . . . . . . . . . . . . . Hacking Detections 34 | . 3 1 3 . . . 7 4 . . . . 9 1 . 1 3 2 Full Trace Events 5 | . . . 1 . . . . 1 . . . . 2 . . 1 . . Feedback Events . | . . . . . . . . . . . . . . . . . . . Feedback Blocked . | . . . . . . . . . . . . . . . . . . . Robot Schematics Acquired 5 | . . . . . . . . . . . 5 . . . . . . . Robots Built . | . . . . . . . . . . . . . . . . . . . Authchips . | . . . . . . . . . . . . . . . . . . . Time . | . . . . . . . . . . . . . . . . . . . Total Robot Build Rating . | . . . . . . . . . . . . . . . . . . . Part Schematics Acquired 11 | . . . . . . . 1 . . . 10 . . . . . . . Parts Built 2 | . . . . . . . . . . . . . 1 . . 1 . . Authchips . | . . . . . . . . . . . . . . . . . . . Time 304 | . . . . . . . . . . . . . 152 . . 152 . . Total Part Build Rating 10 | . . . . . . . . . . . . . 5 . . 5 . . Parts Repaired . | . . . . . . . . . . . . . . . . . . . Time . | . . . . . . . . . . . . . . . . . . . Parts Recycled . | . . . . . . . . . . . . . . . . . . . Recycled Matter . | . . . . . . . . . . . . . . . . . . . Retrieved Matter . | . . . . . . . . . . . . . . . . . . . Retrieved Components . | . . . . . . . . . . . . . . . . . . . Parts Scanalyzed 1 | . . . . . . . 1 . . . . . . . . . . . Part Schematics Acquired 1 | . . . . . . . 1 . . . . . . . . . . . Parts Damaged . | . . . . . . . . . . . . . . . . . . . Bothacking | -11 -10 -10 -9 -9 -9 -8 -8 -7 -7 -7 -7 -6 -6 -5 -5 -5 -5 -4 ------------ Run | Scr Mat Min Mat Min Exi Min Mat Fac Low Low Dat Pro Fac Fac Was Fac Ext Fac Used RIF Installer . | . . . . . . . . . . . . . . . . . . . Robots Hacked . | . . . . . . . . . . . . . . . . . . . Non-combat . | . . . . . . . . . . . . . . . . . . . Combat . | . . . . . . . . . . . . . . . . . . . Robot Hacks Applied . | . . . . . . . . . . . . . . . . . . . Relay Couplers Released . | . . . . . . . . . . . . . . . . . . . Fabnet Peak Effective % . | . . . . . . . . . . . . . . . . . . . Robots Rewired 4 | . . . . . . . . . . . . . . . . . 4 . Allies Hacked . | . . . . . . . . . . . . . . . . . . . Hacks Repelled . | . . . . . . . . . . . . . . . . . . . Allies | -11 -10 -10 -9 -9 -9 -8 -8 -7 -7 -7 -7 -6 -6 -5 -5 -5 -5 -4 -------- Run | Scr Mat Min Mat Min Exi Min Mat Fac Low Low Dat Pro Fac Fac Was Fac Ext Fac Total Allies 13 | . . 2 . 1 . . . . . . . 1 . . 1 . 8 . Largest Group 6 | . . 2 2 1 1 . . . . . . 1 . . 1 . 6 . Highest-Rated Group 163 | . . 41 41 31 31 . . . . . . 96 . . 31 . 163 . Highest-Rated Ally 96 | . . 31 31 31 31 . . . . . . 96 . . 31 . 31 . Total Orders . | . . . . . . . . . . . . . . . . . . . Ally Attacks 49 | . . 5 6 . . . . . . . . 4 . . 9 . 25 . Total Damage 870 | . . 42 104 . . . . . . . . 144 . . 148 . 432 . Kills 5 | . . 2 1 . . . . . . . . 1 . . . . 1 . Allies Corrupted . | . . . . . . . . . . . . . . . . . . . Allies Melted 3 | . . . . . . . . . . . . 1 . . . . 2 . Intel | -11 -10 -10 -9 -9 -9 -8 -8 -7 -7 -7 -7 -6 -6 -5 -5 -5 -5 -4 ------- Run | Scr Mat Min Mat Min Exi Min Mat Fac Low Low Dat Pro Fac Fac Was Fac Ext Fac Robot Analysis Total 2 | . 1 . . . . . . . . . . . 1 . . . . . Derelict Logs Recovered 3 | . . 1 . . . . . . . 1 . 1 . . . . . . Drone Launches . | . . . . . . . . . . . . . . . . . . . Drone Recoveries . | . . . . . . . . . . . . . . . . . . . Exploration | -11 -10 -10 -9 -9 -9 -8 -8 -7 -7 -7 -7 -6 -6 -5 -5 -5 -5 -4 ------------- Run | Scr Mat Min Mat Min Exi Min Mat Fac Low Low Dat Pro Fac Fac Was Fac Ext Fac Turns Passed 7337 | 71 241 221 521 135 260 104 1354 273 146 188 33 136 1144 874 54 316 607 659 Spaces Moved 8583 | 51 193 170 301 104 216 64 726 607 418 486 85 435 2074 1067 98 293 346 849 Core 402 | 20 . . . . . . . . . . . . . . . . 2 380 Treads . | . . . . . . . . . . . . . . . . . . . Legs 2076 | 31 193 170 301 104 216 64 726 9 . . . . . . . . 262 . Wheels 419 | . . . . . . . . . . . . . . 226 98 46 . 49 Hover 511 | . . . . . . . . . . . . . . 168 . 247 82 14 Flight 5175 | . . . . . . . . 598 418 486 85 435 2074 673 . . . 406 Fastest Speed 20 | 50 120 120 120 120 120 120 120 20 20 20 30 25 22 29 49 49 49 29 Average Speed 59 | 111 120 120 120 120 120 120 121 31 20 23 33 25 30 59 49 57 131 48 Slowest Speed 470 | 150 120 120 120 120 120 120 123 190 20 34 34 30 52 138 49 119 470 100 Overloaded Moves . | . . . . . . . . . . . . . . . . . . . Propulsion Burnouts . | . . . . . . . . . . . . . . . . . . . Robots Hopped 26 | . . . . . . . . . . 1 . . 15 3 . . . 7 Cave-ins Triggered . | . . . . . . . . . . . . . . . . . . . Exploration Rate (%) 41 | 4 39 38 27 29 63 24 67 17 60 64 70 65 48 18 78 9 44 22 Regions Visited 18 Branch Regions 9 Pre-discovered Areas 1 | . . . . . . . . . . . 1 . . . . . . . Known Exits Taken 3 | . 1 1 1 . . . . . . . . . . . . . . . Unknown Exits Taken 13 | 1 . . . 1 1 1 1 1 1 1 1 1 1 . . 1 1 . Scrap Searched 8 | . . 1 . . . . . . 2 3 . 2 . . . . . . Spaces Dug 17 | . . . . . . . . . . . . . 8 6 . 1 . 2 Terrain Destroyed 72 | . . . 48 7 . . . . . . . . 8 6 . 1 . 2 Melee 17 | . . . . . . . . . . . . . 8 6 . 1 . 2 Projectile 1 | . . . . 1 . . . . . . . . . . . . . . AOE 54 | . . . 48 6 . . . . . . . . . . . . . . Terrain Rammed . | . . . . . . . . . . . . . . . . . . . Walls Destroyed . | . . . . . . . . . . . . . . . . . . . Machines Disabled . | . . . . . . . . . . . . . . . . . . . Actions | -11 -10 -10 -9 -9 -9 -8 -8 -7 -7 -7 -7 -6 -6 -5 -5 -5 -5 -4 --------- Run | Scr Mat Min Mat Min Exi Min Mat Fac Low Low Dat Pro Fac Fac Was Fac Ext Fac Total 10426 | 62 200 186 430 110 217 80 1109 695 480 544 88 461 2518 1232 102 421 468 1023 Wait 1219 | . . 10 85 1 . 3 287 60 61 49 2 24 379 85 3 90 14 66 Move 8520 | 50 192 169 300 103 215 63 725 606 417 483 84 434 2043 1061 97 292 345 841 Hop 20 | . . . . . . . . . . 1 . . 15 3 . . . 1 Pick Up 69 | 6 4 2 6 1 1 3 10 2 . . . 1 10 5 1 2 11 4 Fast Attach 65 | 6 1 1 1 . . 1 7 3 . . . . 9 2 1 2 9 22 Attach 34 | . . . 3 . . . 2 6 . . 2 . 4 7 . . 4 6 Detach 30 | . . . 2 . . . . 4 . . . 1 10 5 . . 2 6 Swap 30 | . 1 . 5 2 . . 9 3 1 . . . 1 1 . 2 4 1 Drop 77 | . 1 3 7 1 1 4 19 11 1 1 . . 13 4 . 2 4 5 Fire 84 | . 1 1 21 2 . 6 50 . . 3 . . . . . . . . Melee 166 | . . . . . . . . . . 7 . . 34 59 . 18 19 29 Ram 42 | . . . . . . . . . . . . . . . . . . 42 Kick . | . . . . . . . . . . . . . . . . . . . Crush . | . . . . . . . . . . . . . . . . . . . Escape Stasis 13 | . . . . . . . . . . . . . . . . 13 . . Rewire 56 | . . . . . . . . . . . . . . . . . 56 . Trap 1 | . . . . . . . . . . . . 1 . . . . . . Miscellaneous . | . . . . . . . . . . . . . . . . . . . Route ------- -11/Scrapyard -10/Materials (discovered 2 exits: *Min x2) -10/Mines -9/Materials -9/Mines (discovered 2 exits: *Mat / *Exi) -9/Exiles -8/Mines -8/Materials -7/Factory -7/Lower Caves -7/Lower Caves -7/Data Miner -6/Proximity Caves -6/Factory (discovered 3 exits: *Fac / [*Low x2]) -5/Factory -5/Waste -5/Factory -5/Extension -4/Factory History --------- Turn | Location | Event 5 | -11/Scrapyard | Discovered new exit (range 15) 72 | -11/Scrapyard | Entered Materials 140 | -10/Materials | Discovered new exit (range 6) 205 | -10/Materials | Identified exit to Mines 313 | -10/Materials | Entered Mines 315 | -10/Mines | Build established: Mutant 406 | -10/Mines | Found a damaged Exp. Sensor Array with a note attached 409 | -10/Mines | Found Prototype Device 418 | -10/Mines | Discovered new exit (range 15) 436 | -10/Mines | Identified exit to Materials 454 | -10/Mines | Learned Materials security intel 534 | -10/Mines | Entered Materials 534 | -9/Materials | Accompanied by 2 allies 534 | -9/Materials | Evolved 2 slots: Propulsion x1, Utility x1 534 | -9/Materials | Identified Exp. Sensor Array 539 | -9/Materials | Led the pair of lost Derelicts to an unsafe place 907 | -9/Materials | Identified exit to Mines 1055 | -9/Materials | Entered Mines 1084 | -9/Mines | Discovered new exit (range 6) 1087 | -9/Mines | Received a Mining Laser from a helpful Derelict 1141 | -9/Mines | Met a Derelict bent on vengeance 1183 | -9/Mines | Deemed a non-threat by the Exiles lab entrance 1183 | -9/Mines | Discovered new exit (range 5) 1190 | -9/Mines | Entered Exiles 1190 | -9/Exiles | Accompanied by 1 ally 1219 | -9/Exiles | Met 8R-AWN 1240 | -9/Exiles | Met EX-HEX 1272 | -9/Exiles | Met EX-BIN 1286 | -9/Exiles | Aligned with FarCom system 1288 | -9/Exiles | Given EX-Vault access code 1315 | -9/Exiles | Opened EX-Vault 1317 | -9/Exiles | Build established: Scavenger-Mutant 1325 | -9/Exiles | Found Cloak of Protection 1350 | -9/Exiles | Warned to stay clear of 0b10 Research branches 1389 | -9/Exiles | Met EX-DEC 1438 | -9/Exiles | Discovered new exit (range 10) 1450 | -9/Exiles | Left Exiles lab with Cloak of Protection 1450 | -9/Exiles | Entered Mines 1549 | -8/Mines | Discovered new exit (range 5) 1554 | -8/Mines | Entered Materials 1554 | -8/Materials | Evolved 2 slots: Propulsion x1, Utility x1 2871 | -8/Materials | Discovered new exit (range 16) 2908 | -8/Materials | Entered Factory 2908 | -7/Factory | Evolved 2 slots: Propulsion x2 2927 | -7/Factory | Found Scrap Engine 3175 | -7/Factory | Discovered new exit (range 11) 3181 | -7/Factory | Entered Lower Caves 3182 | -7/Lower Caves | Encountered a Warlord checkpoint 3300 | -7/Lower Caves | Spotted B-75 Beast 3324 | -7/Lower Caves | Discovered new exit (range 14) 3327 | -7/Lower Caves | Entered another Lower Caves area 3392 | -7/Lower Caves | Encountered a Warlord checkpoint 3494 | -7/Lower Caves | Learned Factory terminal intel 3500 | -7/Lower Caves | Lost 3 parts (2n1u) 3510 | -7/Lower Caves | Discovered new exit (range 10) 3515 | -7/Lower Caves | Entered Data Miner 3515 | -7/Data Miner | Discovered new exit (range 6) 3522 | -7/Data Miner | Met Data Miner 3530 | -7/Data Miner | Learned location of Section 7 (-2) 3530 | -7/Data Miner | Acquired the access code to Warlord's prototype stash 3536 | -7/Data Miner | Received God Mode back door access code from Data Miner 3548 | -7/Data Miner | Entered Proximity Caves 3603 | -6/Proximity Caves | Spotted B-75 Beast 3633 | -6/Proximity Caves | Escorted by Enhanced Grunt 3678 | -6/Proximity Caves | Learned Factory stockpile data 3682 | -6/Proximity Caves | Discovered new exit (range 5) 3684 | -6/Proximity Caves | Entered Factory 3684 | -6/Factory | Evolved 2 slots: Propulsion x1, Utility x1 3686 | -6/Factory | Loaded intel: 26 terminal locations 3710 | -6/Factory | Identified exit to DSF 3751 | -6/Factory | Spotted B-75 Beast 3845 | -6/Factory | Build established: Sprinter 3918 | -6/Factory | Discovered new exit (range 4) 3976 | -6/Factory | Found Prototype Launcher 3976 | -6/Factory | Identified Rocket Array 4214 | -6/Factory | Incoming investigation squad redirected 4336 | -6/Factory | Fabricated Biomechanical Wings (x1) 4573 | -6/Factory | Lost 4 parts (1p2n1u) 4591 | -6/Factory | Incoming investigation squad redirected 4687 | -6/Factory | Discovered new exit (range 12) 4819 | -6/Factory | Discovered new exit (range 5) 4828 | -6/Factory | Entered another Factory area 4828 | -5/Factory | Evolved 2 slots: Propulsion x1, Utility x1 5029 | -5/Factory | Build established: Mutant 5686 | -5/Factory | Lost 5 parts (2p1n1u1w) 5702 | -5/Factory | Sucked down chute 5702 | -5/Factory | Entered Waste 5703 | -5/Waste | Met a frightened Derelict 5707 | -5/Waste | Spotted C-40 Crusher 5712 | -5/Waste | Spotted C-40 Crusher 5717 | -5/Waste | EMP discharged 5717 | -5/Waste | System corruption reached 10% 5718 | -5/Waste | Spotted C-40 Crusher 5720 | -5/Waste | Spotted C-40 Crusher 5722 | -5/Waste | Spotted C-40 Crusher 5723 | -5/Waste | Spotted C-40 Crusher 5738 | -5/Waste | Discovered new exit (range 16) 5753 | -5/Waste | Found Prototype Device 5756 | -5/Waste | Entered Factory 5926 | -5/Factory | Fabricated Biomechanical Wings (x1) 6070 | -5/Factory | Discovered new exit (range 6) 6072 | -5/Factory | Entered Extension 6080 | -5/Extension | Identified Exp. Terrain Scanner 6102 | -5/Extension | Rescued a captive Derelict 6102 | -5/Extension | Rescued a captive Derelict 6103 | -5/Extension | Lost 3 parts (1p2u) 6522 | -5/Extension | Build established: Scavenger-Mutant 6582 | -5/Extension | Rescued a captive Derelict 6622 | -5/Extension | Rescued a captive Derelict 6627 | -5/Extension | Spotted B-75 Beast 6639 | -5/Extension | Spotted B-75 Beast 6656 | -5/Extension | Core integrity fell below 50% 6670 | -5/Extension | Discovered new exit (range 5) 6679 | -5/Extension | Entered Factory 6679 | -4/Factory | Evolved 2 slots: Utility x2 6708 | -4/Factory | Lost 13 parts (1p9n2u1w) 6974 | -4/Factory | Build established: Hacker-Mutant 7206 | -4/Factory | Lost 3 parts (1p2n) 7320 | -4/Factory | Core integrity fell below 50% 7335 | -4/Factory | Core integrity fell below 20% 7338 | -4/Factory | Destroyed by Y-64 Sentinel with KE Penetrator Last Messages --------------- 07314_ Destabilizing: System corrupted (+1). 07315_ Slammed into G-67 Veteran. 07318_ Armor Integrity Analyzer broken. 07318_ Destabilizing: Short circuit. 07319_ Slammed into G-67 Veteran. 07323_ Destabilizing: Core damaged (-34). 07324_ Slammed into G-67 Veteran. 07328_ Imp. Gyrokinetic Inverter destroyed. 07328_ Slammed into G-67 Veteran. 07331_ Destabilizing: Core damaged (-57). 07332_ Slammed into G-67 Veteran. 07334_ System Shield destroyed. 07334_ Broken Force Lance destroyed. 07334_ Critical hit (Burn: +37). 07334_ Slammed into G-67 Veteran. 07334_ Destabilizing: Core damaged (-57). 07335_ Slammed into G-67 Veteran. 07336_ Penetrated by Slug. 07336_ Slammed into Y-64 Sentinel. 07338_ Penetrated by Slug. Map ----- +----------------------------------------------------+ | ????????????# # """ "F""?????????????? | | ????????????# """"""""" # """ """" #???######### | | ????????????# # #???# | | ????????????# """"""""" ####/############# | | ????????????# + + | | ????????????########/#### # ! | | ????????????# ### ### %%% ^ !! # | | ????????????# ! %%% !! # | | ????????????????### %%%% ! # | | ??????????????????#### % # | | #????????????????????# + | | #????????????????????#C########+##### * ######### | | #????????????????????# #??????? ??#|% #???????? | | #?????????????????#### ####????? ## #???????? | | #?????????????????+ #?????? # # #???????? | | #?????????????????####### #??????? + !# #???????? | | #???????????????????????#t########?# # #???????? | | #???????????????????????#%#! ! #?## ## #???????? | | #???????????????????????#%#! #??# ## #####+### | | ????????????????#########g#% #??? ## | | ????????? g g%%%+%% ! !#??? ????# | | ????????????????#########g#% #??? ????# | | ????????????????????????#%# ! #????????# | | ????????????????????????#g########????????# | | ????????????????????????#Y#???????????????# | | ????????????????????????#@#???????????????# # | | ????????????????????????#h#???????????????# # | | ????????????????????????#%#???????????????# # | | ????????????????????????#%#???????????????# ^ # | | ????????????????????????#Y#??????????????## | | ????????????????#h#??????????????# | | ????????????????#%#??????????????# | | ????????????????#%#??????????????# | | ????????????????????????#%#??????????????# | | ????????????????????????#%#??????????????# | | ????????????????????????#%#????????????### | | ????????????????????????#%#????????????# | | ????????????????????????#%#????????????# | | #???????????????????????#%#????????????+ | | #???????????????????????#%#????????????# # | | #?????????????###########%#????????????# # | | #?????????????# #=#????????????# ### # | | ###########???# #=#????????????# ??# # | | # #???# #%#?????+??????# ???# # | | # """ """ #???# """ """[+*#????? #?????# ????# # | | # """ "T" #???# """ """ #%#????# ???? ?????#^# | | # """ #???# """ """ #=#????# #?????##??????# # | | # ! #???# # #????# #?????????????# | | # [ #???# ! # #????# #?????????????### | | # ! #???########### #????# #???????????????? | +----------------------------------------------------+ Best States ------------- Heat Dissipation 76 Energy Generation 20 Energy Capacity 500 Matter Stores 300 Matter Capacity 300 Sight Range 22 Robot Scan Range 20 Terrain Scan Density 210 Cloak Strength 5 Armor Coverage 600 Power Shielding 33 Melee Speed Boost 40 Evasion (%) 66 Targeting Accuracy 6 Melee Accuracy 8 Target Analysis 9 Armor Integrity Analysis 30 Recoil Reduction 1 Offensive Hacking 10 Defensive Hacking 10 Item Schematics ----------------- Imp. Datajack | -8/Materials | Scanalyzed Combat Drone Bay | -7/Data Miner | Free Lgt. Regenerative Plating | -7/Data Miner | Free Biomechanical Wings | -7/Data Miner | Free Gravity Neutralizer | -7/Data Miner | Free Prc. Rocket Launcher | -7/Data Miner | Free Arm. Medium Treads | -7/Data Miner | Free Imp. Component Analysis Suite | -7/Data Miner | Free Imp. Arc Projector | -7/Data Miner | Free Adv. Cryofiber Web | -7/Data Miner | Free Imp. Heavy Treads | -7/Data Miner | Free Robot Schematics ------------------ S-27 Virus | -7/Data Miner | Free E-15 Imp | -7/Data Miner | Free W-25 Informer | -7/Data Miner | Free O-24 Administrator | -7/Data Miner | Free B-60 Warrior | -7/Data Miner | Free Fabricated ------------ Biomechanical Wings | x1 | -6/Factory Biomechanical Wings | x1 | -5/Factory Alien Tech Used ----------------- None Achievements -------------- None Challenges ------------ None Game ------ Seed TiamatDynamicLance Manual? 0 Play Time 01:59:49 Cumulative 56.0 hours Start 2022.09.03 @ 02:19:50 End 2022.09.03 @ 04:17:56 Sessions 1 Manual Loads 0 Difficulty Rogue Special Mode None Game No. 42 Rogue 42 Adventurer 0 Explorer 0 Win Type - Total 1 Types 1/0/0/0/0/0/0/0/0 Lore% 53 Gallery% 53 Achievement% 49 Wizard Run 0 Options --------- ASCII 0 Keyboard 1 Movement Vi Keybinds 0 Fullscreen 2 Font 24/Proggy Map View 76x50 Tactical HUD 1 Map Filters NONE Filters NONE Steam 1 RUN: 5c644c18-6f9c-4406-980c-6bd45ecefdb3